Cogmind - Beta 16.1 @@@ ROGUE MODE // 2026.02.14 @ 13:29:43 Player: Not_Jesus8 Result: Self-destructed Performance ------------- Evolutions (1) 500 Regions Visited (2) 400 Robots Destroyed (11) 55 Value Destroyed (281) 281 Prototype IDs (0) 0 Alien Tech Used (0) 0 Bonus (0) 0 TOTAL SCORE: 1236 Bonus ------- None Cogmind --------- Core Integrity 310/400 Matter 300/300 Energy 100/100 System Corruption 10% Temperature Cool (0) Movement Treading (170) Location -9/Materials Parts ------- > --- POWER (1) -------- (None) > --- PROPULSION (2) --- Armored Treads Armored Treads > --- UTILITY (4) ------ Sensor Array Improved Terrain Scan Processor > --- WEAPON (2) ------- Scythe > --- INVENTORY (5) ---- Improved Terrain Scan Processor Melee Analysis Suite Melee Analysis Suite Scythe Scythe Peak State ------------ > --- POWER ------------ (None) > --- PROPULSION ------- Armored Treads Armored Treads > --- UTILITY ---------- Sensor Array Improved Terrain Scan Processor Improved Terrain Scan Processor Improved Terrain Scan Processor > --- WEAPON ----------- Scythe Scythe > --- INVENTORY -------- Improved Terrain Scan Processor Grenade Launcher Datajack Scythe Scythe [Rating: 23] Favorites ----------- Power None Propulsion Armored Treads Treads Armored Treads Flight Unit Flight Unit Utility Improved Terrain Scan Processor Device Sensor Array Processor Improved Terrain Scan Processor Weapon Scythe Impact Weapon Hammer Slashing Weapon Scythe Build | -11 -10 -9 ------- Run | Yrd Mat Mat Slots Evolved 2 | . . 2 Power . | . . . Propulsion . | . . . Utility 2 | . . 2 Weapon . | . . . Parts Attached 14 | . 5 9 Power . | . . . Engine . | . . . Core . | . . . Reactor . | . . . Propulsion 4 | . 2 2 Treads 2 | . . 2 Leg . | . . . Wheel . | . . . Hover . | . . . Flight 2 | . 2 . Utility 6 | . 1 5 Device 2 | . . 2 Storage . | . . . Processor 4 | . 1 3 Hackware . | . . . Protection . | . . . Artifact . | . . . Weapon 4 | . 2 2 Energy Gun . | . . . Energy Cannon . | . . . Ballistic Gun . | . . . Ballistic Cannon . | . . . Launcher . | . . . Special Weapon . | . . . Impact Weapon 2 | . 2 . Slashing Weapon 2 | . . 2 Piercing Weapon . | . . . Special Melee Weapon . | . . . Unidentified Prototypes . | . . . Parts Lost 4 | . 1 3 Power . | . . . Propulsion 1 | . 1 . Utility 2 | . . 2 Weapon 1 | . . 1 Highest Loss Streak 3 | . 1 3 To Critical Strikes . | . . . Average Backups 4 | . 4 4 Power . | . . . Propulsion . | . . . Utility 2 | . 1 2 Weapon 2 | . 2 2 Tool/Special . | . . . Unused Backups 13 | . 3 10 Power . | . . . Propulsion . | . . . Utility 4 | . . 4 Weapon 8 | . 3 5 Tool/Special 1 | . . 1 Average Slot Usage (%) 57 | . 36 81 Treads 9 | . . 19 Flight 8 | . 14 1 Device 5 | . . 10 Processor 19 | . 8 31 Impact Weapon 8 | . 13 2 Slashing Weapon 7 | . . 16 Peak Build Rating 23 | . 4 23 Average Rating 11 | . 3 20 On Entrance 1 | . . 4 Avg Prop Armor Cover (%) . | . . . Naked Turns 27 | . 27 . Heaviest Build 5 | . 3 5 Greatest Support 40 | 3 8 40 Greatest Overweight (x) . | . . . Average Overweight (x) . | . . . Largest Inventory Capacity 5 | 5 5 5 Average Capacity 5 | 5 5 5 Most Carried 5 | . 5 5 Average Carried 4 | . 4 4 Final Capacity 5 | 5 5 5 Final Carried 5 | . 5 5 Class Distribution -------------------- 100% | Mutant Dominant Class ---------------- Mutant | -10/Materials Mutant | -9/Materials Resources | -11 -10 -9 ----------- Run | Yrd Mat Mat Matter Collected 340 | 200 40 100 Remotely . | . . . Salvage Created 426 | . 326 100 Parts 22 | . 17 5 Haulers Intercepted . | . . . Recyclers Shooed . | . . . Parts Field Recycled . | . . . Retrieved Matter . | . . . Parts Self-Destructed . | . . . Prevented . | . . . Parts Restored . | . . . Kills | -11 -10 -9 ------- Run | Yrd Mat Mat Combat Hostiles Destroyed 6 | . 6 . Melee 5 | . 5 . Classes Destroyed 5 | . 3 2 Builder 1 | . . 1 Tunneler 2 | . 2 . Recycler 1 | . . 1 Operator 1 | . 1 . Grunt 6 | . 6 . Best Kill Streak 2 | . 2 1 Combat Bots Only 2 | . 2 . Max Kills in Single Turn 1 | . 1 1 Gunslinging . | . . . Exploded . | . . . Melee 1 | . 1 . Uniques/NPCs Destroyed . | . . . Combat | -11 -10 -9 -------- Run | Yrd Mat Mat Hostile Shots Fired 19 | . 19 . Missed 8 | . 8 . Hits 11 | . 11 . Projectile 11 | . 11 . Damage Taken 419 | . 146 273 Core 140 | . 50 90 Absorbed by Shields . | . . . Core Remaining (%) 90 | 100 80 . Volleys Fired . | . . . Largest . | . . . Hottest . | . . . Shots Fired . | . . . Gun . | . . . Cannon . | . . . Launcher . | . . . Special . | . . . Kinetic . | . . . Thermal . | . . . Explosive . | . . . Electromagnetic . | . . . Robot Hit Streak . | . . . Robot Miss Streak . | . . . Penetration Max . | . . . Secondary Targets . | . . . Shots Hit Robots 17 | . 13 4 Core Hits 8 | . 7 1 Critical Kills 3 | . 3 . Critical Parts Destroyed 1 | . 1 . Critical Strikes 4 | . 4 . Smash 4 | . 4 . Melee Attacks 35 | . 26 9 Impact 28 | . 26 2 Slashing 7 | . . 7 Piercing . | . . . Sneak Attacks 7 | . 3 4 Combat Hostiles . | . . . Follow-up Attacks . | . . . Damage Inflicted 705 | . 481 224 Guns . | . . . Cannons . | . . . Explosions . | . . . Melee 705 | . 481 224 Ramming . | . . . Kinetic . | . . . Thermal . | . . . Explosive . | . . . Electromagnetic . | . . . Impact 521 | . 481 40 Slashing 184 | . . 184 Piercing . | . . . Highest Corruption 10 | . . 10 Average Corruption 10 | . . 10 Corruption Purged . | . . . Corruption Blocked . | . . . Overload Shots . | . . . Overflow Damage 185 | . 101 84 Projectiles . | . . . Explosions . | . . . Melee 185 | . 101 84 Knockbacks 2 | . 2 . Impact 2 | . 2 . Kinetic . | . . . Secondary . | . . . Self-Inflicted Damage . | . . . Shots . | . . . Rammed . | . . . Targets Rammed . | . . . Kicked . | . . . Crushed . | . . . Highest Temperature . | . . . Average Temperature . | . . . Received Heat Transfer 87 | . 87 . Siege Activations . | . . . Martial Activations . | . . . Shielding Activations . | . . . Robots Disrupted . | . . . Combat Hostiles . | . . . Robots Corrupted 3 | . 3 . Combat Hostiles 1 | . 1 . Parts Fried 4 | . 4 . Impact Corruptions 5 | . 5 . Robots Melted . | . . . Combat Hostiles . | . . . Parts Melted . | . . . Heat Transferred . | . . . Parts Sabotaged . | . . . Parts Stolen . | . . . Parts Stripped . | . . . Power Chain Reactions . | . . . Alert | -11 -10 -9 ------- Run | Yrd Mat Mat Maximum Alert Level . | . . . Low Security (%) 100 | 100 100 100 Level 1 . | . . . Level 2 . | . . . Level 3 . | . . . Level 4 . | . . . Level 5 . | . . . High Security . | . . . Max Security . | . . . Peak Influence 132 | . 132 15 Initial . | . . . Average 25 | . 47 . Influence Increases 243 | . 216 27 Destroy 0b10 Robot/C 120 | . 120 . Destroy 0b10 Robot/NC 25 | . 15 10 Destroy Leader 30 | . 30 . Successful Hack 15 | . 15 . Select Force Hacks 30 | . 30 . Disable Machine 15 | . . 15 Destroy Structure 8 | . 6 2 Influence Decreases 243 | . 216 27 Time Decay 232 | . 206 26 Lost Part 11 | . 10 1 Squads Dispatched 3 | . 2 1 Investigation 1 | . 1 . Extermination . | . . . Reinforcement 2 | . 1 1 Assault . | . . . Garrison . | . . . Intercept . | . . . Searches Triggered . | . . . Construction Impeded . | . . . Haulers Reinforced . | . . . Active Scanning Responses . | . . . Cargo Convoy Interrupts . | . . . Stealth | -11 -10 -9 --------- Run | Yrd Mat Mat Distress Signals 2 | . 2 . Communications Jammed . | . . . Distress Signals . | . . . Times Spotted 14 | . 13 1 Peak Tracking Total 4 | . 4 1 Tactical Retreats . | . . . Traps | -11 -10 -9 ------- Run | Yrd Mat Mat Traps Triggered . | . . . Indirectly . | . . . Trap Hack Attempts . | . . . Triggered . | . . . Disarmed . | . . . Reprogrammed . | . . . Reused . | . . . Traps Extracted . | . . . Installed . | . . . Triggered . | . . . Machines | -11 -10 -9 ---------- Run | Yrd Mat Mat Machines Disabled 1 | . . 1 Max in Single Turn 1 | . . 1 Machines Repaired . | . . . Machines Dismantled . | . . . Machines Sabotaged . | . . . Overloaded Fab Kills . | . . . Hacking | -11 -10 -9 --------- Run | Yrd Mat Mat Machines Accessed 8 | . 7 1 Terminals 7 | . 6 1 Fabricators . | . . . Repair Stations . | . . . Recycling Units 1 | . 1 . Scanalyzers . | . . . Garrison Access . | . . . Total Hacks 21 | . 18 3 Successful 11 | . 10 1 Failed 10 | . 8 2 Catastrophic 2 | . 1 1 Database Lockouts . | . . . Manual 21 | . 18 3 Terminals 20 | . 17 3 Fabricators . | . . . Repair Stations . | . . . Recycling Units 1 | . 1 . Scanalyzers . | . . . Garrison Access . | . . . Terminal Hacks 1 | . 1 . Terminal Index 1 | . 1 . Fabricator Hacks . | . . . Repair Station Hacks . | . . . Recycling Unit Hacks . | . . . Scanalyzer . | . . . Garrison Access Hacks . | . . . Unauthorized Hacks 10 | . 9 1 Terminals 9 | . 8 1 Botnet 4 | . 3 1 Skim 5 | . 5 . Fabricators . | . . . Repair Stations . | . . . Recycling Units 1 | . 1 . Tunnel 1 | . 1 . Scanalyzers . | . . . Garrison Access . | . . . Data Cores Recovered . | . . . Used . | . . . Hacking Detections 7 | . 6 1 Full Trace Events 1 | . 1 . Feedback Events . | . . . Feedback Blocked . | . . . Robot Schematics Acquired . | . . . Robots Built . | . . . Authchips . | . . . Time . | . . . Total Robot Build Rating . | . . . Part Schematics Acquired . | . . . Parts Built . | . . . Authchips . | . . . Time . | . . . Total Part Build Rating . | . . . Part Studies Acquired . | . . . Parts Repaired . | . . . Time . | . . . Parts Recycled . | . . . Recycled Matter . | . . . Retrieved Matter . | . . . Retrieved Components . | . . . Parts Scanalyzed . | . . . Part Schematics Acquired . | . . . Parts Damaged . | . . . Bothacking | -11 -10 -9 ------------ Run | Yrd Mat Mat Used RIF Installer . | . . . Robots Hacked . | . . . Non-combat . | . . . Combat . | . . . Robot Hacks Applied . | . . . Relay Couplers Released . | . . . Fabnet Peak Effective % . | . . . Robots Rewired . | . . . Allies Hacked . | . . . Hacks Repelled . | . . . Allies | -11 -10 -9 -------- Run | Yrd Mat Mat Total Allies . | . . . Largest Group . | . . . Highest-Rated Group . | . . . Highest-Rated Ally . | . . . Total Orders . | . . . Ally Attacks . | . . . Total Damage . | . . . Kills . | . . . Allies Corrupted . | . . . Allies Melted . | . . . Intel | -11 -10 -9 ------- Run | Yrd Mat Mat Active Infowar (turns) 512 | . . 512 Sensors 500 | . . 500 Structural 23 | . . 23 Robot Analysis Total . | . . . Derelict Logs Recovered . | . . . Drone Launches . | . . . Drone Recoveries . | . . . Exploration | -11 -10 -9 ------------- Run | Yrd Mat Mat Turns Passed 1126 | 19 587 520 Spaces Moved 497 | 37 306 154 Core 153 | 37 116 . Treads 100 | . . 100 Legs . | . . . Wheels . | . . . Hover . | . . . Flight 244 | . 190 54 Fastest Speed 37 | 50 37 40 Average Speed 68 | 50 42 124 Slowest Speed 170 | 50 50 170 Overloaded Moves . | . . . Propulsion Burnouts . | . . . Robots Hopped . | . . . Potential Cave-ins . | . . . Cave-ins Triggered 1 | . . 1 Exploration Rate (%) 25 | 4 65 8 Regions Visited 2 Branch Regions . Pre-discovered Areas 1 | . 1 . Known Exits Taken 1 | . 1 . Unknown Exits Taken 1 | 1 . . Scrap Searched . | . . . Spaces Dug 9 | . 6 3 Terrain Destroyed 9 | . 6 3 Melee 9 | . 6 3 Projectile . | . . . AOE . | . . . Terrain Rammed . | . . . Walls Destroyed . | . . . Machines Disabled . | . . . Actions | -11 -10 -9 --------- Run | Yrd Mat Mat Total 1222 | 36 716 470 Wait 650 | . 366 284 Move 495 | 36 305 154 Hop . | . . . Pick Up 16 | . 10 6 Fast Attach 11 | . 3 8 Attach 3 | . 2 1 Detach . | . . . Swap . | . . . Drop 13 | . 4 9 Fire . | . . . Melee 34 | . 26 8 Ram . | . . . Kick . | . . . Crush . | . . . Escape Stasis . | . . . Rewire . | . . . Trap . | . . . Miscellaneous . | . . . Route ------- -11/Scrapyard -10/Materials (discovered 5 exits: *Mat x3 / Min / Sub) -9/Materials (discovered 1 exit: Mat) History --------- Turn | Location | Event 4 | -11/Scrapyard | Discovered new exit (range 15) 20 | -11/Scrapyard | Entered Materials 21 | -10/Materials | Met a group of wandering Federalists 158 | -10/Materials | Discovered new exit (range 8) 176 | -10/Materials | Discovered new exit (range 11) 263 | -10/Materials | Learned location of 1 exit from Storage 311 | -10/Materials | Build established: Mutant 321 | -10/Materials | Identified exit to Materials 370 | -10/Materials | Learned location of 2 exits from Mines 410 | -10/Materials | Identified exit to Mines 410 | -10/Materials | Identified exit to Subcaves 442 | -10/Materials | Learned location of 2 exits from Mines 465 | -10/Materials | Learned 2 Storage zone layouts 497 | -10/Materials | Learned 2 Storage zone layouts 588 | -10/Materials | Learned location of 1 exit from Storage 607 | -10/Materials | Entered another Materials area 607 | -9/Materials | Evolved 2 slots: Utility x2 608 | -9/Materials | Identified exit to Materials 1126 | -9/Materials | Crushed by falling debris 1126 | -9/Materials | System corruption reached 10% 1127 | -9/Materials | Self-destructed Last Messages --------------- 00907_ Destroyed Welding Torch. 00907_ U-05 Engineer destroyed. 00908_ K-01 Serf collects debris. 00910_ Acquired 28 matter. 00912_ K-01 Serf collects debris. 00948_ R-06 Scavenger collects Terrain Scan Processor. 00951_ R-06 Scavenger collects Wheel. 00964_ Sneak attack on A-02 Transporter. 00964_ Destroyed Ion Engine. 00972_ K-01 Serf collects debris. 01093_ R-06 Scavenger collects Flight Unit. 01126_ The unstable cave ceiling collapses. 01126_ Crushed by falling debris. 01126_ Scythe destroyed. 01126_ System corrupted by crushing effect (+5). 01126_ Imp. Terrain Scan Processor destroyed. 01126_ System corrupted by crushing effect (+1). 01126_ Imp. Terrain Scan Processor destroyed. 01126_ System corrupted by crushing effect (+4). Map ----- +----------------------------------------------------+ | | | | | | | | | | | | | | | | | | | | | ???????#?####?###????????????????????????????????? | | ???????# #????????????????????????????????? | | ???????# """"" #????????????????????????????????? | | ???????# """"" #????????????????????????????????? | | ???????# """"" #????????????????????????????????? | | ???????# #????????????????????????????????? | | ???????# """ #????????????????????????????????? | | ???????# T" #????????????????????????????????? | | ???????# """ ############?????????????????????? | | ???????# ###;########?????????????????????? | | ???????######+### =##?????????????????????? | | ????????## =##?????????????????????? | | ????????## ! !!##?????????????????????? | | ??????#### !!##?????????????????????? | | ??????#######+### = ##?????????????????????? | | ??????## ## ## @##???????#####?????????? | | ??????## """""##?? #######???????# #?????????? | | ??????## """""## #### ##???????# / #?????????? | | ??????## """""## ? ###############] #?????????? | | ??????## """""## ? !!#?????????? | | ??????## """""## [[#?????????? | | ??????## """""## [[#?????????? | | ??????## """"?########+######## ######?????????? | | ??????## ###### ??????# #??????????????? | | ??????###########????# ???????#?#??????????????? | | ?????? ????# ""???????# #??????????????? | | ?????????????????????# "????????# ??????????????? | | ?????????????????????# "????????###??????????????? | | ?????????????????????# ?????????????????????????? | | ?????????????????????##??????????????????????????? | | ?????????????????????????????????????????????????? | | ?????????????????????????????????????????????????? | | ?????????????????????????????????????????????????? | | ?????????????????????????????????????????????????? | | ?????????????????????????????????????????????????? | | ?????????????????????????????????????????????????? | | ?????????????????????????????????????????????????? | | ?????????????????????????????????????????????????? | | ?????????????????????????????????????????????????? | | ?????????????????????????????????????????????????? | +----------------------------------------------------+ Best States ------------- Heat Dissipation 28 Energy Generation 5 Energy Capacity 100 Matter Stores 300 Matter Capacity 300 Sight Range 16 Robot Scan Range 14 Terrain Scan Density 310 Evasion (%) 62 Recoil Reduction 2 Item Schematics ----------------- None Robot Schematics ------------------ None Fabricated ------------ Nothing Repaired ---------- Nothing Studied --------- None Alien Tech Used ----------------- None Achievements -------------- None Challenges ------------ None Game ------ Seed SensorPointyExtractor Manual? 0 Play Time 00:08:16 Cumulative 38.8 hours Start 2026.02.14 @ 13:21:40 End 2026.02.14 @ 13:29:43 Sessions 1 Manual Loads 0 Difficulty Rogue Special Mode None Game No. 87 Rogue 87 Adventurer 0 Explorer 0 Win Type - Total 2 Types 2/0/0/0/0/0/0/0/0/0 Lore% 40 Gallery% 31 Achievement% 31 Wizard Run 0 Options --------- Layout 1 ASCII 0 Keyboard 1 Movement Arrows Keybinds 0 Fullscreen 1 Font 16/SmallcapsGlow Map View 25x27 Zoom Use 46% Tactical HUD 1 Map Filters NONE Filters NONE Steam 1 RUN: 2880bc12-1ec5-412b-bd97-c83afe7c7f99